bitfinex/quotes_BTCUSD_20250108
["timestamp","ask_amount","ask_price","bid_price","bid_amount"]
[1736362640832,0.00532697,94216.0,94199.0,0.212315]
[1736362641072,0.10429976,94215.0,94200.0,0.212314]
[1736362641244,0.023,94213.0,94200.0,0.212314]
[1736362641449,0.002,94204.0,94200.0,0.424628]
[1736362641832,0.023,94211.0,94200.0,0.212314]
[1736362642194,0.10429976,94211.0,94187.0,0.212343]
[1736362642396,0.004,94215.0,94191.0,0.15]
[1736362642613,0.212237,94235.0,94219.0,0.21227]
[1736362642888,0.31654176,94232.0,94213.0,0.212283]
[1736362643189,0.023,94231.0,94217.0,0.212274]
[1736362643390,0.023,94229.0,94217.0,0.212274]
[1736362643593,0.023,94227.0,94217.0,0.212274]
[1736362643751,0.0813,94246.0,94211.0,0.15]
[1736362644089,0.00015168,94227.0,94211.0,0.15]
[1736362644294,0.00015168,94227.0,94222.0,0.212262]
[1736362644652,0.00015168,94227.0,94222.0,0.424525]
[1736362644887,0.00015168,94227.0,94224.0,0.21226]
[1736362645073,0.00015168,94227.0,94224.0,0.42452]
[1736362645436,0.00015168,94227.0,94226.0,0.287355]
[1736362645639,0.00015168,94227.0,94226.0,0.54165476]
[1736362645987,0.003,94246.0,94245.0,0.212212]
[1736362646209,0.00350551,94246.0,94245.0,0.46651176]
[1736362646397,0.00050551,94246.0,94245.0,1.96651176]
[1736362646965,0.00050551,94246.0,94245.0,1.862212]
[1736362647450,0.00050551,94246.0,94245.0,1.864212]
[1736362647653,0.00050551,94246.0,94245.0,0.214212]
[1736362648019,0.00050551,94246.0,94245.0,0.002]
[1736362648658,0.12780527,94246.0,94245.0,0.009]
[1736362648858,0.12780527,94246.0,94245.0,0.002]
[1736362649201,0.12980527,94246.0,94245.0,0.002]
[1736362649511,0.00050551,94246.0,94239.0,0.212224]
[1736362649712,0.00050551,94246.0,94245.0,0.001]
[1736362650372,0.00050551,94246.0,94243.0,0.212216]
[1736362650594,0.00150551,94246.0,94243.0,0.212216]
[1736362650952,0.00750551,94246.0,94243.0,0.19021599]
[1736362651155,0.00650551,94246.0,94243.0,0.19021599]
[1736362651365,0.00050551,94246.0,94243.0,0.40243199]
[1736362651573,0.00050551,94246.0,94243.0,0.40343199]
[1736362651768,0.00050551,94246.0,94243.0,0.001]
[1736362652167,0.10429976,94245.0,94243.0,0.001]
[1736362652391,0.03723956,94244.0,94243.0,0.001]
[1736362652598,0.12862616,94244.0,94243.0,0.001]
[1736362652980,0.023,94243.0,94218.0,0.212272]
[1736362653347,0.023,94241.0,94199.0,0.01139237]
[1736362653466,0.10562631,94240.0,94224.0,0.424518]
[1736362653686,0.00050551,94246.0,94220.0,0.51254073]
[1736362653901,0.10429976,94245.0,94234.0,0.212235]
[1736362654120,0.00050551,94246.0,94234.0,0.212235]
[1736362654317,0.00050551,94246.0,94220.0,0.212267]
[1736362654318,0.00250551,94246.0,94222.0,0.1284]
[1736362654558,0.00050551,94246.0,94243.0,0.212216]
[1736362654961,0.00150551,94246.0,94243.0,0.212216]
[1736362655165,0.00050551,94246.0,94243.0,0.212216]
[1736362655343,0.00050551,94246.0,94245.0,0.212212]
[1736362655544,0.00250551,94246.0,94245.0,0.212212]
[1736362655826,0.00250551,94246.0,94245.0,0.19021199]
[1736362656279,0.00050551,94246.0,94245.0,0.19021199]
[1736362657637,0.00050551,94246.0,94243.0,0.212216]
[1736362657843,0.00050551,94246.0,94245.0,0.001]
[1736362658330,0.02432631,94258.0,94245.0,0.006]
[1736362658483,0.023,94256.0,94245.0,0.005]
[1736362658681,0.023,94249.0,94231.0,0.212243]
[1736362658880,0.31650576,94248.0,94243.0,0.002]
[1736362659105,0.10429976,94248.0,94243.0,0.002]
[1736362659320,0.10429976,94248.0,94227.0,0.212253]
[1736362659321,0.24385728,94247.0,94227.0,0.212253]
[1736362659487,0.10429976,94246.0,94232.0,0.21224]
[1736362659907,0.10429976,94246.0,94222.0,0.0799]
[1736362659908,0.10429976,94246.0,94237.0,0.21223]
[1736362660191,0.004,94258.0,94241.0,0.212221]
[1736362660389,0.10429976,94257.0,94230.0,0.30043414]
[1736362660605,0.10429976,94257.0,94246.0,0.212209]
[1736362660924,0.10429976,94257.0,94243.0,0.212216]
[1736362661125,0.10429976,94257.0,94243.0,0.19021599]
[1736362661328,0.10429976,94257.0,94222.0,0.2299]
[1736362661528,0.023,94255.0,94222.0,0.2299]
[1736362661773,0.15,94249.0,94197.0,0.0816]
[1736362662122,0.023,94238.0,94207.0,0.212297]
[1736362662294,0.212258,94225.0,94207.0,0.212297]
[1736362662540,0.023,94223.0,94198.0,1.5]
[1736362662713,0.212287,94212.0,94202.0,0.09425992]
[1736362662890,0.10429976,94211.0,94202.0,0.09425992]
[1736362663100,0.212259,94225.0,94202.0,0.09425992]
[1736362663303,0.212262,94223.0,94207.0,0.001]
[1736362663470,0.10429976,94222.0,94207.0,0.213296]
[1736362663662,0.10429976,94222.0,94212.0,0.212287]
[1736362663895,0.10429976,94222.0,94207.0,0.42609851]
[1736362664096,0.10429976,94222.0,94207.0,0.21380151]
[1736362664462,0.10429976,94222.0,94212.0,0.212286]
[1736362664959,0.212251,94228.0,94207.0,0.21280151]
[1736362664960,0.212251,94228.0,94214.0,0.212281]
[1736362665133,0.10429976,94227.0,94214.0,0.212281]
[1736362665678,0.10429976,94227.0,94219.0,0.212269]
[1736362665889,0.00132668,94233.0,94201.0,0.15]
[1736362666090,0.1226,94252.0,94213.0,0.15]
[1736362666309,0.001,94227.0,94215.0,0.15]
[1736362666517,0.001,94227.0,94226.0,0.212255]
[1736362666949,0.001,94227.0,94226.0,1.712255]
[1736362667631,0.10429976,94251.0,94237.0,0.21223]
[1736362668233,0.212175,94262.0,94237.0,0.21223]
[1736362668506,0.00050551,94257.0,94244.0,0.212214]
[1736362668672,0.10480527,94257.0,94238.0,0.212228]
[1736362668835,0.10480527,94257.0,94248.0,0.212203]
[1736362669061,0.00050551,94257.0,94252.0,0.212196]
[1736362669442,0.00050551,94257.0,94252.0,0.424392]
[1736362669639,0.00050551,94257.0,94240.0,0.19481138]
[1736362669847,0.00050551,94257.0,94251.0,0.212197]
[1736362670296,0.00050551,94257.0,94255.0,0.212188]
[1736362670732,0.00950551,94257.0,94255.0,0.212188]
[1736362670973,0.00950551,94257.0,94255.0,0.19018799]
[1736362671316,0.00250551,94257.0,94255.0,0.19018799]
[1736362671521,0.00650551,94257.0,94255.0,0.19018799]
[1736362671691,0.00450551,94257.0,94245.0,0.212212]
[1736362672094,0.00650551,94257.0,94249.0,0.212202]
[1736362672296,0.00250551,94257.0,94245.0,0.212212]
[1736362672529,0.00250551,94257.0,94249.0,0.212202]
[1736362672742,0.21219,94255.0,94241.0,0.212221]
[1736362672890,0.212194,94253.0,94241.0,0.212221]
[1736362673070,0.10429976,94252.0,94241.0,0.212221]
[1736362673716,0.212199,94251.0,94237.0,0.21223]
[1736362673923,0.10429976,94250.0,94237.0,0.21223]
[1736362674479,0.10429976,94250.0,94237.0,0.42446]
[1736362674683,0.10429976,94250.0,94241.0,0.212221]
[1736362675235,0.10529976,94250.0,94241.0,0.212221]
[1736362675436,0.10629976,94250.0,94241.0,0.212221]
[1736362675638,0.13719929,94250.0,94241.0,0.212221]
[1736362676045,0.13719929,94250.0,94241.0,0.19022099]
[1736362676252,0.13719929,94250.0,94237.0,0.21223]
[1736362676452,0.212233,94236.0,94223.0,0.09425992]
[1736362676682,0.10429976,94235.0,94229.0,0.212248]
[1736362677265,0.235205,94249.0,94223.0,0.09425992]
[1736362677470,0.001,94236.0,94234.0,0.212237]
[1736362677673,0.002,94236.0,94234.0,0.212237]
[1736362677870,0.001,94236.0,94234.0,0.212237]
[1736362678293,0.10429976,94248.0,94241.0,0.21222]
[1736362678479,0.10429976,94248.0,94245.0,0.212211]
[1736362678676,0.10429976,94248.0,94242.0,0.212218]
[1736362679019,0.002,94249.0,94247.0,0.212207]
[1736362679412,0.10629976,94249.0,94240.0,0.212223]
[1736362679560,0.023,94247.0,94234.0,0.006]
[1736362679761,0.31650976,94246.0,94234.0,0.006]
[1736362679968,0.10429976,94246.0,94229.0,0.212247]
[1736362680174,0.10429976,94246.0,94220.0,0.15]
[1736362680381,0.002,94249.0,94240.0,0.212222]
[1736362680580,0.212181,94260.0,94243.0,0.212215]
[1736362680781,0.10429976,94256.0,94243.0,0.212215]
[1736362680983,0.13613102,94256.0,94243.0,0.19021499]
[1736362681274,0.212159,94269.0,94249.0,0.212203]
[1736362681476,0.212169,94265.0,94243.0,0.212217]
[1736362681681,0.212169,94265.0,94242.0,0.212217]
[1736362681682,0.004,94249.0,94242.0,0.212217]
[1736362681943,0.00350551,94257.0,94248.0,0.212204]
[1736362682071,0.00350551,94257.0,94252.0,0.212196]
[1736362682278,0.00050551,94257.0,94252.0,0.212196]
[1736362682475,0.00250551,94257.0,94255.0,0.212188]
[1736362683304,0.003,94256.0,94255.0,0.212188]
[1736362683706,0.00050551,94257.0,94255.0,0.212188]
[1736362684164,0.00250551,94257.0,94255.0,0.212188]
[1736362684615,0.00450551,94257.0,94255.0,0.212188]
[1736362684818,0.00050551,94257.0,94255.0,0.212188]
[1736362685216,0.00050551,94257.0,94256.0,0.87219976]
[1736362685414,7e-05,94288.0,94256.0,0.87219976]
[1736362685415,7e-05,94288.0,94287.0,0.212118]
[1736362685646,7e-05,94288.0,94287.0,0.293718]
[1736362685850,0.00022165,94288.0,94287.0,0.59481776]
[1736362686055,0.00963205,94301.0,94300.0,0.212089]
[1736362686543,0.00963205,94301.0,94300.0,0.85288876]
[1736362686806,0.00963205,94301.0,94300.0,0.748589]
[1736362687003,0.00963205,94301.0,94296.0,0.212098]
[1736362687195,0.00963205,94301.0,94298.0,0.212093]
[1736362687333,0.01163205,94301.0,94299.0,0.10429976]
[1736362687551,0.01163205,94301.0,94300.0,0.212089]
[1736362688094,0.01063205,94301.0,94300.0,0.212089]
[1736362688420,0.00963205,94301.0,94289.0,0.212113]
[1736362688571,0.00963205,94301.0,94295.0,0.212098]
[1736362688954,0.00963205,94301.0,94300.0,0.212089]
[1736362689522,0.00963205,94301.0,94295.0,0.212098]
[1736362689808,0.00963205,94301.0,94299.0,0.212089]
[1736362690229,0.00963205,94301.0,94300.0,0.25429976]
[1736362690461,0.00963205,94301.0,94300.0,0.30099976]
[1736362690812,0.00963205,94301.0,94300.0,1.80099976]
[1736362691209,0.01063205,94301.0,94300.0,1.6967]
[1736362691416,0.00963205,94301.0,94300.0,1.80099976]
[1736362692258,0.00963205,94301.0,94300.0,0.30099976]
[1736362692456,0.212001,94339.0,94303.0,0.15]
[1736362692633,0.212005,94337.0,94322.0,0.212038]
[1736362692838,0.023,94333.0,94305.0,0.5365]
[1736362693032,0.023,94331.0,94305.0,0.5365]
[1736362693396,0.21205,94318.0,94302.0,0.212082]
[1736362693552,0.12550476,94317.0,94302.0,0.212082]
[1736362693758,0.0013254,94316.0,94300.0,0.003]
[1736362693952,0.10429976,94315.0,94300.0,0.215089]
[1736362694155,0.212059,94313.0,94305.0,0.001]
[1736362694319,0.1056253,94312.0,94290.0,0.19488174]
[1736362694516,0.00132554,94323.0,94290.0,0.19488174]
[1736362694778,0.003,94317.0,94304.0,0.212077]
[1736362695009,0.10729976,94317.0,94304.0,0.212077]
[1736362695416,0.10729976,94317.0,94304.0,0.424156]
[1736362695593,0.004,94312.0,94304.0,0.424156]
[1736362695805,0.004,94312.0,94304.0,0.212077]
[1736362696010,0.004,94312.0,94300.0,0.19488174]
[1736362696217,0.004,94312.0,94309.0,0.212068]
[1736362696641,0.004,94312.0,94309.0,0.424136]
[1736362696844,0.00015159,94339.0,94309.0,0.212068]
[1736362696845,0.006,94313.0,94309.0,0.212068]
[1736362697141,0.00015159,94339.0,94301.0,0.0482]
[1736362697142,0.001,94317.0,94311.0,0.15]
[1736362697365,0.001,94317.0,94314.0,0.212057]
[1736362697523,0.001,94317.0,94315.0,0.15]
[1736362697724,0.00015159,94339.0,94331.0,0.212017]
[1736362698179,0.00015159,94339.0,94320.0,0.19488174]
[1736362698380,0.00015159,94339.0,94334.0,0.424023]
[1736362700106,0.00315159,94339.0,94334.0,0.424023]
[1736362700308,0.01115159,94339.0,94334.0,0.425023]
[1736362700482,0.00015159,94339.0,94334.0,0.424023]
[1736362700667,0.00015159,94339.0,94336.0,0.424016]
[1736362700882,0.00015159,94339.0,94336.0,0.40201599]
[1736362701088,0.00015159,94339.0,94338.0,0.362003]
[1736362701291,0.00015159,94339.0,94338.0,0.46630276]
[1736362702303,0.0467,94391.0,94338.0,0.46630276]
[1736362702304,0.0144104,94396.0,94366.0,0.0821]
[1736362702509,0.00050532,94384.0,94366.0,0.0821]
[1736362702712,0.00050532,94384.0,94367.0,0.10429976]
[1736362702937,0.00050532,94384.0,94380.0,0.211907]
[1736362703543,0.00050532,94384.0,94366.0,0.0831]
[1736362703746,0.10429976,94383.0,94366.0,0.001]
[1736362703944,0.211907,94381.0,94364.0,0.423887]
[1736362704149,0.02432453,94382.0,94353.0,0.0808]
[1736362704150,0.01450532,94384.0,94371.0,0.211929]
[1736362704361,0.10562431,94383.0,94354.0,0.361967]
[1736362704556,0.21322959,94382.0,94355.0,0.15]
[1736362704803,0.10429976,94379.0,94344.0,0.14138988]
[1736362704976,0.10429976,94363.0,94344.0,0.14138988]
[1736362705179,0.01175486,94362.0,94344.0,0.14138988]
[1736362705438,0.10429976,94361.0,94344.0,0.14138988]
[1736362705623,0.211964,94356.0,94344.0,0.14138988]
[1736362705824,0.211974,94352.0,94344.0,0.14138988]
[1736362706001,0.31627376,94352.0,94336.0,0.15]
[1736362706212,0.05282378,94351.0,94337.0,0.212005]
[1736362706414,0.31760064,94350.0,94327.0,0.15278]
[1736362706584,0.31627576,94350.0,94347.0,0.001]
[1736362707191,0.004,94352.0,94347.0,0.001]
[1736362707400,0.1262,94383.0,94336.0,0.15]
[1736362707401,0.00050501,94369.0,94336.0,0.15]
[1736362707601,0.10429976,94368.0,94355.0,0.211964]
[1736362707803,0.008,94350.0,94348.0,0.211981]
[1736362708233,0.006,94350.0,94348.0,0.211981]
[1736362709150,0.211946,94364.0,94348.0,0.211981]
[1736362709390,0.05300114,94363.0,94353.0,0.211968]
[1736362709539,0.05300114,94363.0,94355.0,0.211965]
[1736362709740,0.05300114,94363.0,94354.0,0.211965]
[1736362709943,0.31623576,94368.0,94354.0,0.211965]
[1736362710151,0.30451376,94368.0,94354.0,0.211965]
[1736362710514,0.001,94363.0,94354.0,0.211965]
[1736362710715,0.004,94363.0,94341.0,0.15]
[1736362710958,0.003,94363.0,94349.0,0.211977]
[1736362711190,0.002,94363.0,94350.0,0.211976]
[1736362711400,0.0214442,94362.0,94341.0,0.15]
[1736362711520,0.001,94363.0,94354.0,0.211966]
[1736362712075,0.211946,94364.0,94351.0,0.211974]
[1736362712278,0.10429976,94363.0,94338.0,0.0484]
[1736362712481,0.10429976,94363.0,94348.0,0.211979]
[1736362712482,0.211949,94362.0,94348.0,0.211979]
[1736362712627,0.210954,94360.0,94344.0,0.21199]
[1736362712827,0.10562455,94359.0,94338.0,0.212001]
[1736362713083,0.211958,94358.0,94344.0,0.211989]
[1736362713285,0.10329976,94357.0,94344.0,0.211989]
[1736362713680,0.10229976,94357.0,94342.0,0.211993]
[1736362713932,0.10229976,94357.0,94346.0,0.211984]
[1736362714099,0.003,94359.0,94347.0,0.211981]
[1736362714297,0.10529976,94358.0,94347.0,0.211981]
[1736362714508,0.10429976,94358.0,94347.0,0.211981]
[1736362714735,0.21196,94357.0,94342.0,0.211993]
[1736362714934,0.10429976,94356.0,94340.0,0.211997]
[1736362715136,0.10329976,94356.0,94340.0,0.211997]
[1736362715351,0.31526276,94356.0,94340.0,0.211997]
[1736362715512,0.31426276,94356.0,94340.0,0.211997]
[1736362715951,0.10129976,94356.0,94345.0,0.211987]
[1736362716140,0.001,94357.0,94330.0,0.2995863]
[1736362716458,0.0769,94383.0,94365.0,0.211941]
[1736362716661,0.211913,94379.0,94362.0,0.211948]
[1736362716859,0.10429976,94368.0,94352.0,0.02116626]
[1736362717063,0.01042998,94367.0,94342.0,0.15]
[1736362717261,0.10429976,94366.0,94348.0,0.21198]
[1736362717484,0.10429976,94366.0,94352.0,0.211971]
[1736362718305,0.001,94357.0,94352.0,0.211971]
[1736362718776,0.10429976,94366.0,94352.0,0.211971]
[1736362718934,0.10329976,94366.0,94352.0,0.211971]
[1736362719139,0.10529976,94366.0,94356.0,0.211961]
[1736362719540,0.211903,94383.0,94351.0,0.211974]
[1736362719725,0.10429976,94378.0,94352.0,1.711972]
[1736362719925,0.00132462,94377.0,94353.0,0.211969]
[1736362720130,0.10329976,94376.0,94363.0,0.211947]
[1736362720611,0.10329976,94376.0,94365.0,0.211942]
[1736362720760,0.10329976,94376.0,94353.0,0.15]
[1736362720964,0.10329976,94376.0,94352.0,1.5]
[1736362720965,0.10329976,94376.0,94363.0,0.15]
[1736362721203,0.10329976,94376.0,94362.0,0.211949]
[1736362721408,0.10229976,94376.0,94362.0,0.211949]
[1736362721811,0.10329976,94376.0,94362.0,0.423898]
[1736362722183,0.10329976,94376.0,94362.0,0.211949]
[1736362722184,0.10129976,94376.0,94362.0,0.211949]
[1736362722384,0.10129976,94376.0,94366.0,0.211939]
[1736362722584,0.10329976,94376.0,94366.0,0.211939]
[1736362722845,0.10329976,94376.0,94363.0,0.211945]
[1736362723215,0.10929976,94376.0,94363.0,0.211945]
[1736362723414,0.10929976,94376.0,94359.0,0.15]
[1736362723415,0.211929,94371.0,94359.0,0.15]
[1736362723614,0.211929,94371.0,94354.0,0.211966]
[1736362723615,0.211979,94349.0,94330.0,0.18851985]
[1736362723872,0.10562465,94348.0,94330.0,0.18851985]
[1736362724013,0.211994,94342.0,94330.0,0.18851985]
[1736362724370,0.211999,94340.0,94330.0,0.18851985]
[1736362724498,0.10429976,94339.0,94330.0,0.18851985]
[1736362724953,0.212003,94338.0,94335.0,0.0946631]
[1736362725158,0.10429976,94337.0,94335.0,0.00050501]
[1736362725350,0.00132514,94336.0,94335.0,0.00050501]
[1736362725553,0.10429976,94336.0,94335.0,0.00050501]
[1736362725972,0.10429976,94336.0,94329.0,0.212023]
[1736362726185,0.001,94339.0,94326.0,0.00015159]
[1736362726354,0.001,94339.0,94331.0,0.212018]
[1736362726550,0.001,94339.0,94326.0,0.00015159]
[1736362726551,0.001,94339.0,94335.0,0.212009]
[1736362726957,0.001,94339.0,94332.0,0.212017]
[1736362726958,0.001,94338.0,94332.0,0.212017]
[1736362727290,0.10429976,94337.0,94326.0,0.00015159]
[1736362727493,0.01062998,94336.0,94327.0,0.212028]
[1736362727690,0.10429976,94335.0,94327.0,0.212028]
[1736362728320,0.10429976,94335.0,94328.0,0.212026]
[1736362729548,0.10429976,94335.0,94326.0,0.00015159]
[1736362729887,0.10429976,94335.0,94329.0,0.212023]
[1736362730044,0.01131572,94349.0,94336.0,0.212007]
[1736362730369,0.10429976,94349.0,94328.0,0.15]
[1736362730549,0.01116941,94366.0,94333.0,0.011085]
[1736362730729,0.10562456,94365.0,94335.0,0.15]
[1736362730922,0.10562456,94365.0,94350.0,0.211974]
[1736362731156,0.10429976,94365.0,94337.0,0.2289]
[1736362731331,0.075,94390.0,94346.0,0.15]
[1736362731532,0.10562437,94389.0,94351.0,0.15]
[1736362731736,0.10562437,94389.0,94377.0,0.211914]
[1736362732149,0.007,94365.0,94353.0,0.15]
[1736362732371,0.003,94365.0,94364.0,0.361945]
[1736362732573,0.003,94365.0,94364.0,0.444345]
[1736362732948,0.10429976,94389.0,94383.0,0.211901]
[1736362733213,0.10480508,94389.0,94383.0,0.211901]
[1736362733411,0.10480508,94389.0,94379.0,0.211909]
[1736362733971,0.211891,94388.0,94371.0,0.15]
[1736362734176,0.16728596,94387.0,94372.0,0.211927]
[1736362734838,0.10562423,94387.0,94372.0,0.211927]
[1736362735256,0.10562423,94387.0,94373.0,0.211925]
[1736362735409,0.10562423,94387.0,94372.0,0.211927]
[1736362735587,0.10562423,94387.0,94366.0,0.211939]
[1736362735588,0.00050532,94389.0,94366.0,0.1973]
[1736362735825,0.004,94387.0,94384.0,0.211898]
[1736362736174,0.002,94387.0,94384.0,0.211898]
[1736362736674,0.002,94387.0,94384.0,0.423797]
[1736362736837,0.002,94387.0,94384.0,0.211898]
[1736362737826,0.002,94387.0,94384.0,0.423797]
[1736362738031,0.003,94387.0,94384.0,0.423797]
[1736362739479,0.003,94387.0,94384.0,0.211898]
[1736362739683,0.003,94387.0,94378.0,0.211913]
[1736362739684,0.10729976,94387.0,94378.0,0.211913]
[1736362739884,0.01078051,94386.0,94378.0,0.211913]
[1736362740174,0.10729976,94387.0,94378.0,0.211913]
[1736362740364,0.10729976,94387.0,94379.0,0.423821]
[1736362740559,0.10729976,94387.0,94379.0,0.21191]
[1736362740976,0.10729976,94387.0,94379.0,0.18990999]
[1736362741310,0.00050532,94389.0,94377.0,0.15]
[1736362741476,0.00050532,94389.0,94371.0,0.211928]
[1736362741477,0.31619476,94386.0,94371.0,0.0209427]
[1736362741676,0.31619476,94386.0,94364.0,0.211944]
[1736362741956,0.10429976,94386.0,94371.0,0.211927]
[1736362742212,0.10562426,94386.0,94371.0,0.211927]
[1736362742385,0.10562426,94386.0,94379.0,0.001]
[1736362742534,0.10562426,94386.0,94371.0,0.211927]
[1736362743134,0.05623063,94385.0,94365.0,0.21194]
[1736362743368,0.10429976,94384.0,94373.0,0.211923]
[1736362743570,0.00132454,94383.0,94370.0,0.21193]
[1736362743889,0.10429976,94382.0,94358.0,0.15]
[1736362744863,0.10429976,94382.0,94368.0,0.211935]
[1736362745065,0.03488912,94381.0,94368.0,0.211935]
[1736362745305,0.10429976,94380.0,94368.0,0.42387]
[1736362745686,0.10429976,94380.0,94368.0,0.211935]
[1736362745881,0.10429976,94380.0,94368.0,0.18993499]
[1736362746281,0.013,94382.0,94366.0,0.15]
[1736362746484,0.10429976,94381.0,94367.0,0.211938]
[1736362746684,0.10429976,94381.0,94353.0,0.07704]
[1736362746685,0.01305446,94380.0,94353.0,0.07704]
[1736362746890,0.009,94382.0,94347.0,0.01115307]
[1736362746891,0.10562448,94379.0,94347.0,0.01115307]
[1736362747143,0.001,94381.0,94377.0,0.211914]
[1736362747354,0.001,94381.0,94377.0,0.423829]
[1736362747551,0.21186,94402.0,94386.0,0.211894]
[1736362747702,0.00132428,94401.0,94386.0,0.211894]
[1736362747905,0.0769,94411.0,94388.0,0.211891]
[1736362748112,0.211847,94408.0,94388.0,0.211891]
[1736362748357,0.00132422,94407.0,94388.0,0.211891]
[1736362749120,0.211858,94403.0,94384.0,0.15]
[1736362749450,0.00132431,94402.0,94386.0,0.15]
[1736362749655,0.211866,94400.0,94386.0,0.15]
[1736362749855,0.00132431,94399.0,94386.0,0.15]
[1736362750086,0.10429976,94388.0,94376.0,0.211918]
[1736362750232,0.01048051,94387.0,94376.0,0.211918]
[1736362750435,0.10429976,94386.0,94377.0,0.15]
[1736362750600,0.10429976,94386.0,94378.0,0.211913]
[1736362750801,0.10429976,94386.0,94372.0,0.211925]
[1736362751116,0.211909,94381.0,94364.0,0.211944]
[1736362751341,0.10562436,94380.0,94363.0,0.211947]
[1736362751864,0.10562436,94380.0,94366.0,0.211938]
[1736362752434,0.211911,94379.0,94363.0,0.211947]
[1736362752657,0.10562437,94378.0,94363.0,0.211947]
[1736362752858,0.03175314,94377.0,94367.0,0.211938]
[1736362753036,0.10429976,94376.0,94367.0,0.211938]
[1736362753235,0.211883,94392.0,94361.0,0.15]
[1736362753444,0.10562426,94388.0,94371.0,0.211928]
[1736362753664,0.002,94380.0,94374.0,0.211921]
[1736362753861,0.10629976,94380.0,94375.0,0.21192]
[1736362754034,0.10429976,94380.0,94375.0,0.21192]
[1736362754381,0.10429976,94380.0,94371.0,0.211928]
[1736362754767,0.10429976,94380.0,94374.0,0.211921]
[1736362755194,0.10629976,94380.0,94374.0,0.211921]
[1736362755398,0.00050532,94389.0,94365.0,0.15]
[1736362755597,0.10429976,94388.0,94365.0,0.15]
[1736362755837,0.001,94380.0,94379.0,0.211911]
[1736362756050,0.10429976,94388.0,94387.0,0.211893]
[1736362756326,0.00050532,94389.0,94387.0,0.211893]
[1736362756535,0.00050532,94389.0,94381.0,0.211905]
[1736362756536,0.10429976,94388.0,94381.0,0.211905]
[1736362756738,0.00050532,94389.0,94386.0,0.211895]
[1736362757587,0.00050532,94389.0,94386.0,0.42379]
[1736362758002,0.10480508,94389.0,94381.0,0.001]
[1736362758218,0.11478027,94388.0,94378.0,0.211913]
[1736362758477,0.00132441,94387.0,94371.0,0.211929]
[1736362758722,0.10562424,94386.0,94371.0,0.211929]
[1736362758914,0.10562424,94386.0,94361.0,0.0813]
[1736362759219,0.211909,94380.0,94363.0,0.211947]
[1736362759352,0.211913,94378.0,94363.0,0.211947]
[1736362759559,0.10562437,94377.0,94371.0,0.003]
[1736362759767,0.10562437,94377.0,94358.0,0.211956]
[1736362759971,0.05294374,94376.0,94346.0,0.08525536]
[1736362760176,0.10562448,94375.0,94364.0,0.211944]
[1736362760374,0.10562448,94375.0,94364.0,0.211943]
[1736362760572,0.10429976,94375.0,94359.0,0.02131889]
[1736362760842,0.10429976,94375.0,94327.0,0.1]
[1736362760843,0.045,94408.0,94363.0,0.0477]
[1736362760966,0.211811,94424.0,94388.0,0.444891]
[1736362761169,0.211813,94423.0,94388.0,0.444891]
[1736362761411,0.00132406,94422.0,94388.0,1.944891]
[1736362761558,0.05629898,94429.0,94388.0,1.944891]
[1736362761559,0.211812,94424.0,94388.0,1.944891]
[1736362761755,0.211819,94420.0,94388.0,1.944891]
[1736362761955,0.211899,94416.0,94388.0,1.944891]
[1736362762223,0.00132408,94415.0,94388.0,1.944891]
[1736362762422,0.00150532,94389.0,94388.0,1.947891]
[1736362763682,0.00150532,94389.0,94388.0,0.450891]
[1736362764255,0.00150532,94389.0,94388.0,0.300891]
[1736362764411,0.00150532,94389.0,94388.0,0.450891]
[1736362764610,0.00150532,94389.0,94388.0,0.367891]
[1736362765114,0.00150532,94389.0,94388.0,0.217891]
[1736362765571,0.10580508,94389.0,94388.0,0.006]
[1736362765772,0.11795905,94389.0,94388.0,0.006]
[1736362765985,0.10580508,94389.0,94379.0,0.19591099]
[1736362766317,0.10429976,94388.0,94379.0,0.19591099]
[1736362766452,0.10429976,94388.0,94375.0,0.211918]
[1736362766660,0.10429976,94388.0,94383.0,0.211902]
[1736362767347,0.10429976,94388.0,94384.0,0.2119]
[1736362767546,0.10429976,94388.0,94380.0,0.211908]
[1736362768302,0.10429976,94388.0,94385.0,0.211897]
[1736362768707,0.001,94388.0,94385.0,0.211897]
[1736362769179,0.00050532,94389.0,94386.0,0.211895]
[1736362769695,0.00050532,94389.0,94386.0,0.42379]
[1736362770096,0.003,94388.0,94386.0,0.211895]
[1736362770552,0.00050532,94389.0,94386.0,0.42379]
[1736362770789,0.00050532,94389.0,94388.0,0.211891]
[1736362770988,0.00050532,94389.0,94388.0,0.18989099]
[1736362772790,0.00150532,94389.0,94388.0,0.19289099]
[1736362773859,0.00150532,94389.0,94388.0,0.19489099]
[1736362774079,0.00050532,94389.0,94388.0,0.19189099]
[1736362774219,0.00150532,94389.0,94388.0,0.005]
[1736362774423,0.00150532,94389.0,94388.0,0.003]
[1736362774666,0.02341683,94389.0,94381.0,0.211906]
[1736362774944,0.02341683,94389.0,94388.0,0.004]
[1736362775303,0.12771659,94389.0,94376.0,0.423834]
[1736362775500,0.10429976,94388.0,94376.0,0.423834]
[1736362776084,0.211893,94387.0,94375.0,0.211918]
[1736362776287,0.14224958,94386.0,94378.0,0.211911]
[1736362776690,0.14224958,94386.0,94375.0,0.211918]
[1736362778099,0.14324958,94386.0,94375.0,0.211918]
[1736362778312,0.001,94386.0,94370.0,0.19435178]
[1736362778670,0.001,94386.0,94385.0,0.211898]
[1736362780155,0.00050532,94389.0,94385.0,0.211898]
[1736362780358,0.00050532,94389.0,94385.0,0.423796]
[1736362780974,0.00050532,94389.0,94385.0,0.19289799]
[1736362781398,0.00050532,94389.0,94385.0,0.18989799]
[1736362781604,0.00050532,94389.0,94385.0,0.19289799]
[1736362782007,0.00050532,94389.0,94385.0,0.40179599]
[1736362783445,0.00050532,94389.0,94385.0,0.40279599]
[1736362783716,0.00050532,94389.0,94385.0,0.40179599]
[1736362783950,0.00050532,94389.0,94385.0,0.40479599]
[1736362784851,0.00050532,94389.0,94385.0,0.41306366]